[Event "Late-Titled-Tuesday-Blitz-April-02-2024"]
[Site "Chess.com"]
[Date "2024.04.02"]
[Round "9"]
[White "cthake"]
[Black "ChempionBg"]
[Result "0-1"]
[WhiteElo "1816"]
[BlackElo "2243"]
[TimeControl "180+1"]
[EndTime "15:41:57 PDT"]
[Termination "ChempionBg won by resignation"]

1. e4 {[%clk 0:03:00.9]} 1... c5 {[%clk 0:02:58.9]} 2. Nf3 {[%clk 0:02:59.1]}
2... d6 {[%clk 0:02:59]} 3. c3 {[%clk 0:02:57]} 3... Nf6 {[%clk 0:02:57.6]} 4.
Bb5+ {[%clk 0:02:56.3]} 4... Bd7 {[%clk 0:02:56.8]} 5. Bxd7+ {[%clk 0:02:53.6]}
5... Qxd7 {[%clk 0:02:56]} 6. d3 {[%clk 0:02:54.2]} 6... g6 {[%clk 0:02:53.3]}
7. O-O {[%clk 0:02:53.8]} 7... Bg7 {[%clk 0:02:53.3]} 8. Re1 {[%clk 0:02:50.7]}
8... O-O {[%clk 0:02:51.9]} 9. d4 {[%clk 0:02:48.8]} 9... cxd4 {[%clk
0:02:50.8]} 10. cxd4 {[%clk 0:02:49]} 10... d5 {[%clk 0:02:50.5]} 11. e5 {[%clk
0:02:47.7]} 11... Ne4 {[%clk 0:02:50.4]} 12. Nbd2 {[%clk 0:02:46.1]} 12... Nxd2
{[%clk 0:02:47.3]} 13. Bxd2 {[%clk 0:02:40.3]} 13... e6 {[%clk 0:02:46.8]} 14.
Rc1 {[%clk 0:02:34.2]} 14... Nc6 {[%clk 0:02:45.3]} 15. Qa4 {[%clk 0:02:24.7]}
15... Rfc8 {[%clk 0:02:41.3]} 16. Be3 {[%clk 0:02:12.9]} 16... a6 {[%clk
0:02:38.8]} 17. h3 {[%clk 0:02:01.9]} 17... b5 {[%clk 0:02:37.4]} 18. Qb3 {[%clk
0:01:57.8]} 18... Na5 {[%clk 0:02:36]} 19. Qd1 {[%clk 0:01:38.2]} 19... Bf8
{[%clk 0:02:30.4]} 20. b3 {[%clk 0:01:30.2]} 20... Ba3 {[%clk 0:02:26.4]} 21.
Rxc8+ {[%clk 0:01:18.5]} 21... Rxc8 {[%clk 0:02:24.5]} 22. Qd2 {[%clk 0:01:18]}
22... b4 {[%clk 0:02:16]} 23. Bg5 {[%clk 0:01:08.1]} 23... Rc6 {[%clk
0:01:44.8]} 24. Bf6 {[%clk 0:01:06.5]} 24... Qc8 {[%clk 0:01:45.3]} 25. h4
{[%clk 0:00:59.9]} 25... Rc2 {[%clk 0:01:41.2]} 26. Qh6 {[%clk 0:00:51.6]} 26...
Qf8 {[%clk 0:01:40.2]} 27. Qg5 {[%clk 0:00:47.3]} 27... Rxa2 {[%clk 0:01:24.8]}
28. h5 {[%clk 0:00:47.2]} 28... Nxb3 {[%clk 0:01:20.8]} 29. hxg6 {[%clk
0:00:47.2]} 29... fxg6 {[%clk 0:01:20.9]} 30. Nh4 {[%clk 0:00:28.9]} 30... Qf7
{[%clk 0:01:08.3]} 31. Re3 {[%clk 0:00:22.6]} 31... Nxd4 {[%clk 0:01:02.3]} 32.
Rh3 {[%clk 0:00:20.9]} 32... Bc1 {[%clk 0:00:51.3]} 33. Qg3 {[%clk 0:00:13.7]}
33... Ne2+ {[%clk 0:00:48.7]} 0-1

[Event "Late-Titled-Tuesday-Blitz-April-02-2024"]
[Site "Chess.com"]
[Date "2024.04.02"]
[Round "9"]
[White "dennisodessa"]
[Black "TheMagician"]
[Result "1-0"]
[WhiteElo "2551"]
[BlackElo "2307"]
[TimeControl "180+1"]
[EndTime "15:42:18 PDT"]
[Termination "dennisodessa won on time"]

1. d4 {[%clk 0:02:58.6]} 1... Nf6 {[%clk 0:02:58.4]} 2. c4 {[%clk 0:02:50.7]}
2... g6 {[%clk 0:02:58.2]} 3. Nc3 {[%clk 0:02:50.8]} 3... Bg7 {[%clk 0:02:58.6]}
4. e4 {[%clk 0:02:51.4]} 4... d6 {[%clk 0:02:58.3]} 5. f3 {[%clk 0:02:49.9]}
5... Nc6 {[%clk 0:02:55]} 6. Be3 {[%clk 0:02:47.3]} 6... e5 {[%clk 0:02:53.3]}
7. d5 {[%clk 0:02:47]} 7... Nd4 {[%clk 0:02:47.7]} 8. Nge2 {[%clk 0:02:45.4]}
8... Nxe2 {[%clk 0:02:44.6]} 9. Bxe2 {[%clk 0:02:46.3]} 9... Nh5 {[%clk
0:02:42.2]} 10. Qd2 {[%clk 0:02:34.5]} 10... f5 {[%clk 0:02:28.1]} 11. exf5
{[%clk 0:02:28.7]} 11... gxf5 {[%clk 0:02:28.2]} 12. O-O-O {[%clk 0:02:22.2]}
12... O-O {[%clk 0:02:15.1]} 13. Rhg1 {[%clk 0:02:04.2]} 13... b6 {[%clk
0:02:09.6]} 14. g4 {[%clk 0:01:51.6]} 14... fxg4 {[%clk 0:02:07.7]} 15. fxg4
{[%clk 0:01:52.5]} 15... Nf4 {[%clk 0:02:07.5]} 16. Ne4 {[%clk 0:01:50.3]} 16...
Qe8 {[%clk 0:01:52.8]} 17. Ng3 {[%clk 0:01:35.2]} 17... Qa4 {[%clk 0:01:45.8]}
18. Kb1 {[%clk 0:01:22.2]} 18... a5 {[%clk 0:01:10.5]} 19. Nf5 {[%clk
0:01:04.9]} 19... Bxf5+ {[%clk 0:00:47.4]} 20. gxf5 {[%clk 0:01:05.8]} 20...
Rxf5 {[%clk 0:00:45.6]} 21. Bg4 {[%clk 0:01:01.9]} 21... Rf6 {[%clk 0:00:20.3]}
22. Be6+ {[%clk 0:00:35.2]} 22... Rxe6 {[%clk 0:00:12.7]} 23. dxe6 {[%clk
0:00:28.3]} 23... Qxc4 {[%clk 0:00:12.6]} 24. Bxf4 {[%clk 0:00:22.1]} 24... Qxf4
{[%clk 0:00:07.8]} 25. Qg2 {[%clk 0:00:16.8]} 25... Qf5+ {[%clk 0:00:06.8]} 26.
Ka1 {[%clk 0:00:16.3]} 1-0

[Event "Late-Titled-Tuesday-Blitz-April-02-2024"]
[Site "Chess.com"]
[Date "2024.04.02"]
[Round "9"]
[White "gorgeous1083"]
[Black "UK_23"]
[Result "0-1"]
[WhiteElo "2248"]
[BlackElo "2398"]
[TimeControl "180+1"]
[EndTime "15:42:18 PDT"]
[Termination "UK_23 won on time"]

1. d4 {[%clk 0:03:00.9]} 1... d5 {[%clk 0:02:58.4]} 2. c4 {[%clk 0:03:00.2]}
2... e6 {[%clk 0:02:50.7]} 3. Nf3 {[%clk 0:03:00.4]} 3... Nf6 {[%clk 0:02:50.5]}
4. Nc3 {[%clk 0:03:01]} 4... Be7 {[%clk 0:02:50.7]} 5. Bf4 {[%clk 0:03:00.8]}
5... O-O {[%clk 0:02:48.2]} 6. e3 {[%clk 0:03:01.2]} 6... Nbd7 {[%clk
0:02:48.4]} 7. Bd3 {[%clk 0:03:00.2]} 7... dxc4 {[%clk 0:02:47.8]} 8. Bxc4
{[%clk 0:03:00]} 8... a6 {[%clk 0:02:47.7]} 9. a4 {[%clk 0:02:58]} 9... b6
{[%clk 0:02:46.3]} 10. O-O {[%clk 0:02:57.4]} 10... Bb7 {[%clk 0:02:30.1]} 11.
Bd3 {[%clk 0:02:55.7]} 11... c5 {[%clk 0:02:28.6]} 12. Ne5 {[%clk 0:02:38.1]}
12... cxd4 {[%clk 0:02:26.6]} 13. exd4 {[%clk 0:02:38.2]} 13... Bb4 {[%clk
0:02:10.3]} 14. Bc2 {[%clk 0:02:27.8]} 14... Nxe5 {[%clk 0:02:01.3]} 15. Bxe5
{[%clk 0:02:25.8]} 15... Bxc3 {[%clk 0:01:54.5]} 16. bxc3 {[%clk 0:02:25.3]}
16... Qd5 {[%clk 0:01:54.6]} 17. f3 {[%clk 0:02:16.2]} 17... Nd7 {[%clk
0:01:48.1]} 18. Qd3 {[%clk 0:02:13.4]} 18... f5 {[%clk 0:01:45.3]} 19. Rfe1
{[%clk 0:02:02.6]} 19... Rac8 {[%clk 0:01:36]} 20. Qd2 {[%clk 0:01:46.3]} 20...
Rfd8 {[%clk 0:01:33]} 21. Qg5 {[%clk 0:01:36.9]} 21... Nxe5 {[%clk 0:01:31.2]}
22. Rxe5 {[%clk 0:01:36.4]} 22... Qc4 {[%clk 0:01:26.7]} 23. Re3 {[%clk
0:01:23.7]} 23... Bd5 {[%clk 0:01:19.1]} 24. Rb1 {[%clk 0:01:17.9]} 24... b5
{[%clk 0:01:15.3]} 25. axb5 {[%clk 0:01:17.3]} 25... axb5 {[%clk 0:01:16.2]} 26.
Bd3 {[%clk 0:01:07.6]} 26... Qxc3 {[%clk 0:01:10.9]} 27. Bxf5 {[%clk 0:01:00.4]}
27... Qxd4 {[%clk 0:01:10.5]} 28. Bh3 {[%clk 0:00:14.8]} 28... h6 {[%clk
0:01:02.4]} 29. Qe5 {[%clk 0:00:11.6]} 29... Qxe5 {[%clk 0:01:00.7]} 30. Rxe5
{[%clk 0:00:11.7]} 30... Kf7 {[%clk 0:01:00.9]} 31. Re2 {[%clk 0:00:09]} 31...
Bc4 {[%clk 0:00:57.3]} 32. Ree1 {[%clk 0:00:08]} 32... Rd2 {[%clk 0:00:54.9]}
33. Red1 {[%clk 0:00:07.1]} 33... Rcd8 {[%clk 0:00:54.9]} 34. Rxd2 {[%clk
0:00:06.1]} 34... Rxd2 {[%clk 0:00:55.8]} 35. Re1 {[%clk 0:00:05.7]} 35... Kf6
{[%clk 0:00:54.4]} 36. f4 {[%clk 0:00:04.3]} 36... g6 {[%clk 0:00:53.8]} 37. g3
{[%clk 0:00:04.6]} 37... Bd5 {[%clk 0:00:53.1]} 38. Kf1 {[%clk 0:00:03.6]} 38...
b4 {[%clk 0:00:52.3]} 39. Re2 {[%clk 0:00:03.9]} 39... Bc4 {[%clk 0:00:52.1]}
40. Bxe6 {[%clk 0:00:01.2]} 40... Bxe2+ {[%clk 0:00:47.5]} 0-1

[Event "Late-Titled-Tuesday-Blitz-April-02-2024"]
[Site "Chess.com"]
[Date "2024.04.02"]
[Round "9"]
[White "protectiago"]
[Black "teresin05"]
[Result "0-1"]
[WhiteElo "2059"]
[BlackElo "2273"]
[TimeControl "180+1"]
[EndTime "15:42:19 PDT"]
[Termination "teresin05 won on time"]

1. d4 {[%clk 0:02:56]} 1... d5 {[%clk 0:02:54.9]} 2. c4 {[%clk 0:02:51.2]} 2...
c6 {[%clk 0:02:54.7]} 3. Nf3 {[%clk 0:02:50.4]} 3... Nf6 {[%clk 0:02:53]} 4. g3
{[%clk 0:02:50]} 4... Bf5 {[%clk 0:02:49.2]} 5. Nc3 {[%clk 0:02:46.9]} 5... h6
{[%clk 0:02:45]} 6. Bf4 {[%clk 0:02:44.2]} 6... e6 {[%clk 0:02:43.5]} 7. Bg2
{[%clk 0:02:43.3]} 7... Nbd7 {[%clk 0:02:42.9]} 8. O-O {[%clk 0:02:43]} 8... Be7
{[%clk 0:02:42.1]} 9. Qb3 {[%clk 0:02:42.9]} 9... Qb6 {[%clk 0:02:33.5]} 10.
Rfe1 {[%clk 0:02:18.5]} 10... O-O {[%clk 0:02:30.5]} 11. h3 {[%clk 0:02:05.8]}
11... Ne4 {[%clk 0:02:21]} 12. g4 {[%clk 0:01:41.1]} 12... Bh7 {[%clk
0:02:14.9]} 13. Nxe4 {[%clk 0:01:32.8]} 13... Bxe4 {[%clk 0:02:15.8]} 14. e3
{[%clk 0:01:30.8]} 14... dxc4 {[%clk 0:02:10.5]} 15. Qxc4 {[%clk 0:01:26.6]}
15... Qxb2 {[%clk 0:02:10.1]} 16. g5 {[%clk 0:00:56.9]} 16... hxg5 {[%clk
0:02:02.7]} 17. Nxg5 {[%clk 0:00:35.8]} 17... Bxg2 {[%clk 0:02:00.8]} 18. Kxg2
{[%clk 0:00:36.1]} 18... Qb4 {[%clk 0:01:58.5]} 19. Qd3 {[%clk 0:00:33.4]} 19...
g6 {[%clk 0:01:52.5]} 20. Rab1 {[%clk 0:00:30.8]} 20... Qa5 {[%clk 0:01:50.7]}
21. h4 {[%clk 0:00:28.9]} 21... b6 {[%clk 0:01:41.4]} 22. Rh1 {[%clk 0:00:24.3]}
22... Kg7 {[%clk 0:01:40.8]} 23. Qe4 {[%clk 0:00:18.8]} 23... Qd5 {[%clk
0:01:32.9]} 24. Rbc1 {[%clk 0:00:18.4]} 24... Bxg5 {[%clk 0:01:30.6]} 25. Qxd5
{[%clk 0:00:17.3]} 25... cxd5 {[%clk 0:01:30.3]} 26. hxg5 {[%clk 0:00:17.1]}
26... Rac8 {[%clk 0:01:29.8]} 27. Rxc8 {[%clk 0:00:11.8]} 27... Rxc8 {[%clk
0:01:30.7]} 28. Rh6 {[%clk 0:00:10.9]} 28... f6 {[%clk 0:01:28.5]} 29. gxf6+
{[%clk 0:00:10.7]} 29... Nxf6 {[%clk 0:01:29.4]} 30. Rh1 {[%clk 0:00:10.1]}
30... Rc2 {[%clk 0:01:27.1]} 31. Be5 {[%clk 0:00:09.6]} 31... g5 {[%clk
0:01:21.4]} 32. Bxf6+ {[%clk 0:00:07.4]} 32... Kxf6 {[%clk 0:01:22.3]} 33. Rh7
{[%clk 0:00:07.2]} 33... Rxa2 {[%clk 0:01:20.9]} 34. Rb7 {[%clk 0:00:06.9]}
34... Ra5 {[%clk 0:01:16.2]} 35. Kf3 {[%clk 0:00:06.5]} 35... b5 {[%clk
0:01:16.3]} 36. Kg4 {[%clk 0:00:06.1]} 36... a6 {[%clk 0:01:14]} 37. Rb8 {[%clk
0:00:06.5]} 37... Ra4 {[%clk 0:01:14]} 38. Rf8+ {[%clk 0:00:06.6]} 38... Ke7
{[%clk 0:01:13.6]} 39. Rg8 {[%clk 0:00:04.5]} 39... b4 {[%clk 0:01:14]} 40. Kxg5
{[%clk 0:00:03.4]} 40... b3 {[%clk 0:01:14.5]} 41. Rg7+ {[%clk 0:00:03.6]} 41...
Kd6 {[%clk 0:01:14.2]} 42. Rb7 {[%clk 0:00:04.5]} 42... Ra3 {[%clk 0:01:12.7]}
43. Kf6 {[%clk 0:00:04.3]} 43... a5 {[%clk 0:01:12.3]} 44. f3 {[%clk 0:00:04.7]}
44... a4 {[%clk 0:01:12.8]} 45. e4 {[%clk 0:00:05.2]} 45... Ra2 {[%clk
0:01:13.2]} 46. e5+ {[%clk 0:00:05.4]} 46... Kc6 {[%clk 0:01:13.6]} 47. Rb8
{[%clk 0:00:05]} 47... b2 {[%clk 0:01:10.9]} 48. Kxe6 {[%clk 0:00:05.2]} 48...
a3 {[%clk 0:01:11.3]} 49. f4 {[%clk 0:00:01.7]} 49... Ra1 {[%clk 0:01:11.6]} 50.
f5 {[%clk 0:00:02]} 50... b1=Q {[%clk 0:01:12.1]} 51. Rxb1 {[%clk 0:00:01.8]}
51... Rxb1 {[%clk 0:01:13]} 52. f6 {[%clk 0:00:02.3]} 52... a2 {[%clk 0:01:13]}
53. f7 {[%clk 0:00:02.5]} 53... Rf1 {[%clk 0:01:13.5]} 0-1

[Event "Late-Titled-Tuesday-Blitz-April-02-2024"]
[Site "Chess.com"]
[Date "2024.04.02"]
[Round "9"]
[White "ansko1999"]
[Black "Duhless"]
[Result "0-1"]
[WhiteElo "2629"]
[BlackElo "3094"]
[TimeControl "180+1"]
[EndTime "15:42:20 PDT"]
[Termination "Duhless won on time"]

1. e4 {[%clk 0:02:59.6]} 1... c6 {[%clk 0:02:33.9]} 2. d4 {[%clk 0:02:58.3]}
2... d5 {[%clk 0:02:34.8]} 3. Nd2 {[%clk 0:02:57.9]} 3... g6 {[%clk 0:02:31.3]}
4. Ngf3 {[%clk 0:02:56.6]} 4... Bg7 {[%clk 0:02:30]} 5. Bd3 {[%clk 0:02:53.9]}
5... Nh6 {[%clk 0:02:21.3]} 6. c3 {[%clk 0:02:49.3]} 6... O-O {[%clk 0:02:18.6]}
7. O-O {[%clk 0:02:47.4]} 7... f6 {[%clk 0:02:16.7]} 8. Re1 {[%clk 0:02:44.7]}
8... Nf7 {[%clk 0:02:16.3]} 9. h3 {[%clk 0:02:35.6]} 9... e5 {[%clk 0:02:09.5]}
10. dxe5 {[%clk 0:02:29]} 10... fxe5 {[%clk 0:02:08.7]} 11. Nf1 {[%clk
0:02:16.5]} 11... Nd7 {[%clk 0:02:08.1]} 12. Ne3 {[%clk 0:02:11.5]} 12... Nf6
{[%clk 0:02:04.9]} 13. Qc2 {[%clk 0:01:58.5]} 13... Nd6 {[%clk 0:01:59.3]} 14.
Nxe5 {[%clk 0:01:50.8]} 14... Nfxe4 {[%clk 0:01:58.2]} 15. f3 {[%clk 0:01:24.8]}
15... Qh4 {[%clk 0:01:52]} 16. Rf1 {[%clk 0:00:49.2]} 16... Ng3 {[%clk
0:01:33.1]} 17. N3g4 {[%clk 0:00:43.9]} 17... Bxg4 {[%clk 0:01:28.3]} 18. Nxg4
{[%clk 0:00:42.5]} 18... Nxf1 {[%clk 0:01:26.6]} 19. Kxf1 {[%clk 0:00:42.9]}
19... Rae8 {[%clk 0:01:22.3]} 20. Bd2 {[%clk 0:00:40.4]} 20... Nf5 {[%clk
0:01:19.1]} 21. Be1 {[%clk 0:00:27.6]} 21... Ng3+ {[%clk 0:00:36.8]} 22. Kg1
{[%clk 0:00:25]} 22... h5 {[%clk 0:00:37.4]} 23. Nh2 {[%clk 0:00:10.3]} 23...
Re6 {[%clk 0:00:20.2]} 24. Qf2 {[%clk 0:00:08.8]} 24... Rfe8 {[%clk 0:00:16.8]}
25. Qxg3 {[%clk 0:00:07.7]} 25... Rxe1+ {[%clk 0:00:16.3]} 0-1

[Event "Late-Titled-Tuesday-Blitz-April-02-2024"]
[Site "Chess.com"]
[Date "2024.04.02"]
[Round "9"]
[White "Hikaru"]
[Black "AryanTari"]
[Result "1-0"]
[WhiteElo "3251"]
[BlackElo "2973"]
[TimeControl "180+1"]
[EndTime "15:42:22 PDT"]
[Termination "Hikaru won by resignation"]

1. d4 {[%clk 0:03:00.9]} 1... d5 {[%clk 0:02:58.7]} 2. Bg5 {[%clk 0:02:56.7]}
2... f6 {[%clk 0:02:55.9]} 3. Bf4 {[%clk 0:02:53.9]} 3... c5 {[%clk 0:02:53.1]}
4. e3 {[%clk 0:02:53.8]} 4... Nc6 {[%clk 0:02:49.4]} 5. Nf3 {[%clk 0:02:53.1]}
5... g5 {[%clk 0:02:41.5]} 6. Bg3 {[%clk 0:02:52.8]} 6... h5 {[%clk 0:02:39.7]}
7. h3 {[%clk 0:02:47.1]} 7... h4 {[%clk 0:02:39.6]} 8. Bh2 {[%clk 0:02:47.3]}
8... cxd4 {[%clk 0:02:37.4]} 9. exd4 {[%clk 0:02:45.2]} 9... Bf5 {[%clk
0:02:37.6]} 10. Bd3 {[%clk 0:02:40.8]} 10... Qd7 {[%clk 0:02:35.8]} 11. Nc3
{[%clk 0:02:23.5]} 11... Nh6 {[%clk 0:02:31.7]} 12. O-O {[%clk 0:02:20.6]} 12...
e6 {[%clk 0:02:29.2]} 13. Nb5 {[%clk 0:02:05.6]} 13... Rc8 {[%clk 0:02:26.6]}
14. c4 {[%clk 0:02:03.5]} 14... Bxd3 {[%clk 0:01:57.7]} 15. Qxd3 {[%clk
0:02:04.4]} 15... Kf7 {[%clk 0:01:36.2]} 16. b3 {[%clk 0:01:30.4]} 16... Nf5
{[%clk 0:01:14.1]} 17. Rad1 {[%clk 0:01:26.6]} 17... Bb4 {[%clk 0:00:55.4]} 18.
a3 {[%clk 0:01:24.5]} 18... Ba5 {[%clk 0:00:53.8]} 19. c5 {[%clk 0:00:58.1]}
19... a6 {[%clk 0:00:48.2]} 20. Nd6+ {[%clk 0:00:57.7]} 20... Nxd6 {[%clk
0:00:48.6]} 21. Bxd6 {[%clk 0:00:58.4]} 21... Bc7 {[%clk 0:00:46.4]} 22. Bxc7
{[%clk 0:00:58.6]} 22... Qxc7 {[%clk 0:00:45.7]} 23. Rfe1 {[%clk 0:00:58.4]}
23... Qf4 {[%clk 0:00:43.8]} 24. Nh2 {[%clk 0:00:50.8]} 24... Rce8 {[%clk
0:00:33.5]} 25. b4 {[%clk 0:00:50.4]} 25... Ne7 {[%clk 0:00:27.2]} 26. Ng4
{[%clk 0:00:41.3]} 26... Nf5 {[%clk 0:00:24.5]} 27. a4 {[%clk 0:00:40]} 27...
Nh6 {[%clk 0:00:21.2]} 28. Nxh6+ {[%clk 0:00:39.7]} 28... Rxh6 {[%clk
0:00:21.4]} 29. b5 {[%clk 0:00:40.2]} 29... axb5 {[%clk 0:00:20]} 30. axb5
{[%clk 0:00:40.6]} 30... g4 {[%clk 0:00:20.2]} 31. c6 {[%clk 0:00:36.7]} 31...
bxc6 {[%clk 0:00:20.4]} 32. bxc6 {[%clk 0:00:37.6]} 32... Rg6 {[%clk 0:00:17.4]}
33. Rb1 {[%clk 0:00:36.1]} 33... Re7 {[%clk 0:00:17.4]} 34. Rb7 {[%clk
0:00:35.2]} 34... g3 {[%clk 0:00:17.2]} 35. f3 {[%clk 0:00:20.6]} 35... Rg8
{[%clk 0:00:16.7]} 36. Qh7+ {[%clk 0:00:20.1]} 1-0

[Event "Late-Titled-Tuesday-Blitz-April-02-2024"]
[Site "Chess.com"]
[Date "2024.04.02"]
[Round "9"]
[White "jcmesafischer"]
[Black "Szachulec75"]
[Result "0-1"]
[WhiteElo "2359"]
[BlackElo "2081"]
[TimeControl "180+1"]
[EndTime "15:42:24 PDT"]
[Termination "Szachulec75 won on time"]

1. e4 {[%clk 0:02:58]} 1... d6 {[%clk 0:02:57]} 2. d4 {[%clk 0:02:24.7]} 2...
Nf6 {[%clk 0:02:50.9]} 3. Nc3 {[%clk 0:02:15.5]} 3... c6 {[%clk 0:02:51.2]} 4.
f4 {[%clk 0:02:13.8]} 4... Qb6 {[%clk 0:02:49]} 5. e5 {[%clk 0:02:06.6]} 5...
Nd5 {[%clk 0:02:47.5]} 6. Ne4 {[%clk 0:01:58.9]} 6... dxe5 {[%clk 0:02:45.4]} 7.
fxe5 {[%clk 0:01:57.7]} 7... Bf5 {[%clk 0:02:43.9]} 8. Ng3 {[%clk 0:01:56.7]}
8... Bg6 {[%clk 0:02:39]} 9. c3 {[%clk 0:01:56]} 9... e6 {[%clk 0:02:37.9]} 10.
Bd3 {[%clk 0:01:52.8]} 10... c5 {[%clk 0:02:37]} 11. Bxg6 {[%clk 0:01:50]} 11...
hxg6 {[%clk 0:02:36.9]} 12. Nf3 {[%clk 0:01:49.6]} 12... cxd4 {[%clk 0:02:35.3]}
13. Nxd4 {[%clk 0:01:50.5]} 13... Nc6 {[%clk 0:02:28.2]} 14. Nxc6 {[%clk
0:01:40.6]} 14... bxc6 {[%clk 0:02:22.9]} 15. Ne4 {[%clk 0:01:36.5]} 15... Rd8
{[%clk 0:02:15.2]} 16. Qf3 {[%clk 0:01:31.7]} 16... Rh5 {[%clk 0:02:04.9]} 17.
g4 {[%clk 0:01:00]} 17... Rxe5 {[%clk 0:01:46.7]} 18. Bg5 {[%clk 0:00:45.6]}
18... f6 {[%clk 0:01:37.1]} 19. O-O-O {[%clk 0:00:39.3]} 19... fxg5 {[%clk
0:01:24.5]} 20. Rhf1 {[%clk 0:00:33.9]} 20... Qe3+ {[%clk 0:01:24]} 21. Qxe3
{[%clk 0:00:30.5]} 21... Nxe3 {[%clk 0:01:22.7]} 22. Rxd8+ {[%clk 0:00:29]}
22... Kxd8 {[%clk 0:01:23.1]} 23. Rxf8+ {[%clk 0:00:29.2]} 23... Ke7 {[%clk
0:01:23.6]} 24. Nc5 {[%clk 0:00:09.9]} 24... Rxc5 {[%clk 0:01:19.8]} 25. Ra8
{[%clk 0:00:10.8]} 25... Ra5 {[%clk 0:01:18.7]} 26. a3 {[%clk 0:00:08.5]} 26...
Nxg4 {[%clk 0:01:19.1]} 27. b4 {[%clk 0:00:07.8]} 27... Rxa3 {[%clk 0:01:17.5]}
28. Kb2 {[%clk 0:00:08.7]} 28... Ra6 {[%clk 0:01:17.5]} 29. c4 {[%clk
0:00:08.2]} 29... Ne5 {[%clk 0:01:15.8]} 30. Kb3 {[%clk 0:00:06.3]} 30... Nd7
{[%clk 0:01:09.1]} 31. Rc8 {[%clk 0:00:01.9]} 31... Rb6 {[%clk 0:01:07.4]} 32.
Rc7 {[%clk 0:00:01.2]} 32... c5 {[%clk 0:01:03.4]} 33. b5 {[%clk 0:00:01.3]}
33... a6 {[%clk 0:01:03.4]} 34. Ka4 {[%clk 0:00:01.7]} 34... axb5+ {[%clk
0:01:03.6]} 35. cxb5 {[%clk 0:00:02.6]} 35... c4 {[%clk 0:01:03.4]} 36. Ka5
{[%clk 0:00:02.9]} 36... c3 {[%clk 0:01:00.7]} 37. Rxc3 {[%clk 0:00:02.9]} 37...
Rb8 {[%clk 0:00:58.7]} 38. Rc7 {[%clk 0:00:02.6]} 38... Kd6 {[%clk 0:00:58.7]}
39. Rc6+ {[%clk 0:00:02.4]} 39... Kd5 {[%clk 0:00:58.2]} 40. Rc7 {[%clk
0:00:03]} 40... Nb6 {[%clk 0:00:57.1]} 41. Rxg7 {[%clk 0:00:03]} 41... e5 {[%clk
0:00:55.3]} 42. Rxg6 {[%clk 0:00:02.9]} 42... Nc4+ {[%clk 0:00:55.3]} 43. Kb4
{[%clk 0:00:02.9]} 43... Nd6 {[%clk 0:00:54.2]} 44. Rxg5 {[%clk 0:00:01.9]}
44... Rxb5+ {[%clk 0:00:53.8]} 45. Ka4 {[%clk 0:00:02.5]} 45... Rb2 {[%clk
0:00:52.8]} 46. h4 {[%clk 0:00:02]} 46... Rh2 {[%clk 0:00:53]} 47. h5 {[%clk
0:00:02]} 47... Kd4 {[%clk 0:00:53]} 48. Kb4 {[%clk 0:00:01.6]} 48... e4 {[%clk
0:00:53]} 0-1

[Event "Late-Titled-Tuesday-Blitz-April-02-2024"]
[Site "Chess.com"]
[Date "2024.04.02"]
[Round "9"]
[White "Evgeny81"]
[Black "Shahdad2007"]
[Result "1-0"]
[WhiteElo "2762"]
[BlackElo "2602"]
[TimeControl "180+1"]
[EndTime "15:42:26 PDT"]
[Termination "Evgeny81 won by resignation"]

1. e4 {[%clk 0:03:00.9]} 1... c5 {[%clk 0:02:59.2]} 2. Nf3 {[%clk 0:02:59.5]}
2... e6 {[%clk 0:02:58.8]} 3. c3 {[%clk 0:02:58.1]} 3... d5 {[%clk 0:02:58]} 4.
exd5 {[%clk 0:02:58.1]} 4... Qxd5 {[%clk 0:02:56.7]} 5. d4 {[%clk 0:02:58.7]}
5... Nf6 {[%clk 0:02:56.7]} 6. Be2 {[%clk 0:02:58.9]} 6... Be7 {[%clk
0:02:54.3]} 7. O-O {[%clk 0:02:59]} 7... O-O {[%clk 0:02:54.2]} 8. c4 {[%clk
0:02:59]} 8... Qd8 {[%clk 0:02:52.6]} 9. Nc3 {[%clk 0:02:59.3]} 9... b6 {[%clk
0:02:44.8]} 10. Bf4 {[%clk 0:02:48.6]} 10... Bb7 {[%clk 0:02:43.9]} 11. dxc5
{[%clk 0:02:48.7]} 11... Bxc5 {[%clk 0:02:41.7]} 12. Qxd8 {[%clk 0:02:45.5]}
12... Rxd8 {[%clk 0:02:42.6]} 13. Rfd1 {[%clk 0:02:44.4]} 13... Nc6 {[%clk
0:02:40.8]} 14. h3 {[%clk 0:02:41.7]} 14... Nd4 {[%clk 0:02:31]} 15. Nxd4 {[%clk
0:02:40.3]} 15... Bxd4 {[%clk 0:02:31.9]} 16. Rac1 {[%clk 0:02:39.8]} 16... e5
{[%clk 0:02:18.7]} 17. Bg5 {[%clk 0:02:37.2]} 17... Rd7 {[%clk 0:01:51.9]} 18.
Bxf6 {[%clk 0:02:27.7]} 18... gxf6 {[%clk 0:01:51.3]} 19. Nb5 {[%clk 0:02:27.5]}
19... Rad8 {[%clk 0:01:40.5]} 20. Bg4 {[%clk 0:02:13]} 20... f5 {[%clk
0:01:36.3]} 21. Rxd4 {[%clk 0:01:55.6]} 21... exd4 {[%clk 0:01:32.6]} 22. Bxf5
{[%clk 0:01:55.9]} 22... Re7 {[%clk 0:01:31.5]} 23. Rd1 {[%clk 0:01:47.2]} 23...
Ba6 {[%clk 0:01:11.5]} 24. Bd3 {[%clk 0:01:33.5]} 24... Bxb5 {[%clk 0:01:10.1]}
25. cxb5 {[%clk 0:01:34.4]} 25... Rc7 {[%clk 0:01:01.6]} 26. g4 {[%clk 0:01:30]}
26... h6 {[%clk 0:00:59.2]} 27. Kg2 {[%clk 0:01:24.7]} 27... Rdc8 {[%clk
0:00:56.3]} 28. Re1 {[%clk 0:01:18.4]} 28... Rc1 {[%clk 0:00:50.9]} 29. Re7
{[%clk 0:01:15.7]} 29... Rd1 {[%clk 0:00:50.3]} 30. Bf5 {[%clk 0:01:15.2]} 30...
Rd8 {[%clk 0:00:48.2]} 31. Rxa7 {[%clk 0:00:58.6]} 31... d3 {[%clk 0:00:47.8]}
32. Bxd3 {[%clk 0:00:58.3]} 32... R1xd3 {[%clk 0:00:45.9]} 33. Rb7 {[%clk
0:00:59]} 33... Rd1 {[%clk 0:00:46.8]} 34. Rxb6 {[%clk 0:00:58.9]} 34... R1d2
{[%clk 0:00:46.2]} 35. a4 {[%clk 0:00:56]} 35... Rxb2 {[%clk 0:00:46.2]} 36. a5
{[%clk 0:00:56.4]} 36... Rd5 {[%clk 0:00:43]} 37. a6 {[%clk 0:00:55.2]} 37...
Rd7 {[%clk 0:00:34.8]} 38. Rb8+ {[%clk 0:00:49.9]} 38... Kg7 {[%clk 0:00:30.2]}
39. b6 {[%clk 0:00:50.3]} 39... Rdd2 {[%clk 0:00:28.8]} 40. a7 {[%clk
0:00:46.6]} 40... Rxf2+ {[%clk 0:00:28.6]} 41. Kg3 {[%clk 0:00:47.2]} 41... Rg2+
{[%clk 0:00:28.3]} 42. Kh4 {[%clk 0:00:46.1]} 42... Ra2 {[%clk 0:00:18]} 43. b7
{[%clk 0:00:43.1]} 43... Rxa7 {[%clk 0:00:16.7]} 44. Rg8+ {[%clk 0:00:43]} 44...
Kxg8 {[%clk 0:00:15.8]} 45. b8=Q+ {[%clk 0:00:43.5]} 45... Kg7 {[%clk
0:00:16.2]} 46. Qxa7 {[%clk 0:00:44.1]} 46... Rf2 {[%clk 0:00:15.9]} 47. Qxf2
{[%clk 0:00:43.7]} 1-0